fUSD/lending_fUSD_20251122
["ID","MTS","AMOUNT","RATE_DAILY","PERIOD"]
[394626148,1763795451874,-500.0,0.00016712,2]
[394626149,1763795451885,-500.0,0.00016712,2]
[394626150,1763795451896,-1154.65,0.00016712,2]
[394626151,1763795451907,-500.0,0.00016712,2]
[394626152,1763795451917,-500.0,0.00016712,2]
[394626153,1763795451927,-353.69781767,0.00016712,2]
[394626154,1763795451936,-305.39367729,0.00016712,2]
[394626155,1763795451946,-500.0,0.00016712,2]
[394626156,1763795451957,-543.03185099,0.00016712,2]
[394626157,1763795451966,-500.0,0.00016712,2]
[394626158,1763795451976,-500.0,0.00016712,2]
[394626159,1763795451986,-928.41,0.00016712,2]
[394626160,1763795451995,-500.0,0.00016712,2]
[394626161,1763795452005,-500.0,0.00016712,2]
[394626162,1763795452014,-500.0,0.00016712,2]
[394626163,1763795452024,-753.82,0.00016712,2]
[394626164,1763795452033,-500.0,0.00016712,2]
[394626165,1763795452042,-168.61610495,0.00016712,2]
[394626166,1763795452052,-500.0,0.00016712,2]
[394626167,1763795452062,-523.56497386,0.00016712,2]
[394626168,1763795452072,-500.0,0.00016712,2]
[394626169,1763795452082,-195.87154136,0.00016712,2]
[394626170,1763795452096,-500.0,0.00016712,2]
[394626171,1763795452107,-500.0,0.00016712,2]
[394626172,1763795452116,-678.17,0.00016712,2]
[394626173,1763795452127,-500.0,0.00016712,2]
[394626174,1763795452139,-500.0,0.00016712,2]
[394626175,1763795452148,-500.0,0.00016712,2]
[394626176,1763795452157,-500.0,0.00016712,2]
[394626177,1763795452168,-571.38,0.00016712,2]
[394626178,1763795452178,-1167.28,0.00016712,2]
[394626179,1763795452187,-500.0,0.00016712,2]
[394626180,1763795452197,-816.49,0.00016712,2]
[394626181,1763795452208,-609.46,0.00016712,2]
[394626182,1763795452218,-500.0,0.00016712,2]
[394626183,1763795452227,-1508.97,0.00016712,2]
[394626184,1763795452237,-500.0,0.00016712,2]
[394626185,1763795452246,-990.34,0.00016712,2]
[394626186,1763795452256,-545.88,0.00016712,2]
[394626187,1763795452266,-500.0,0.00016712,2]
[394626188,1763795452276,-500.0,0.00016712,2]
[394626189,1763795452286,-543.02,0.00016712,2]
[394626190,1763795452296,-646.95,0.00016712,2]
[394626191,1763795452306,-500.0,0.00016712,2]
[394626192,1763795452316,-500.0,0.00016712,2]
[394626193,1763795452325,-500.0,0.00016712,2]
[394626194,1763795452335,-500.0,0.00016712,2]
[394626195,1763795452344,-669.39,0.00016712,2]
[394626196,1763795452354,-500.0,0.00016712,2]
[394626197,1763795452364,-500.0,0.00016712,2]
[394626198,1763795452375,-796.52,0.00016712,2]
[394626199,1763795452384,-549.37,0.00016712,2]
[394626200,1763795452394,-991.62,0.00016712,2]
[394626201,1763795452404,-500.0,0.00016712,2]
[394626202,1763795452413,-633.17,0.00016712,2]
[394626203,1763795452425,-500.0,0.00016712,2]
[394626204,1763795452434,-500.0,0.00016712,2]
[394626205,1763795452444,-396.347417,0.00016712,2]
[394626206,1763795452455,-274.20833614,0.00016712,2]
[394626207,1763795452465,-501.95181988,0.00016712,2]
[394626208,1763795452474,-500.0,0.00016712,2]
[394626209,1763795452484,-751.7,0.00016712,2]
[394626210,1763795452494,-560.75932834,0.00016712,2]
[394626211,1763795452505,-500.0,0.00016712,2]
[394626212,1763795452517,-510.7329484,0.00016712,2]
[394626213,1763795452527,-746.32,0.00016712,2]
[394626214,1763795452537,-1159.175371,0.00016712,2]
[394626215,1763795452546,-1285.18,0.00016712,2]
[394626216,1763795452556,-500.0,0.00016712,2]
[394626217,1763795452566,-500.0,0.00016712,2]
[394626218,1763795452577,-500.0,0.00016712,2]
[394626219,1763795452586,-663.91,0.00016712,2]
[394626220,1763795452596,-652.22,0.00016712,2]
[394626221,1763795452606,-1913.84,0.00016712,2]
[394626222,1763795452617,-500.0,0.00016712,2]
[394626223,1763795452627,-500.0,0.00016712,2]
[394626224,1763795452638,-500.0,0.00016712,2]
[394626225,1763795452647,-820.04,0.00016712,2]
[394626226,1763795452656,-779.07,0.00016712,2]
[394626227,1763795452666,-724.604542,0.00016712,2]
[394626228,1763795452676,-500.0,0.00016712,2]
[394626229,1763795452686,-7358.505106,0.00016712,2]
[394626230,1763795452695,-710.26,0.00016712,2]
[394626231,1763795452705,-500.0,0.00016712,2]
[394626232,1763795452715,-972.58,0.00016712,2]
[394626233,1763795452725,-500.0,0.00016712,2]
[394626234,1763795452735,-505.4435037,0.00016712,2]
[394626235,1763795452744,-232.356419,0.00016712,2]
[394626236,1763795452754,-500.0,0.00016712,2]
[394626237,1763795452763,-500.0,0.00016712,2]
[394626238,1763795452773,-500.0,0.00016712,2]
[394626239,1763795452782,-1150.96,0.00016712,2]
[394626240,1763795452792,-431.678303,0.00016712,2]
[394626241,1763795452801,-500.0,0.00016712,2]
[394626242,1763795452811,-500.0,0.00016712,2]
[394626243,1763795452821,-500.0,0.00016712,2]
[394626244,1763795452830,-500.0,0.00016712,2]
[394626245,1763795452839,-346.65242876,0.00016712,2]
[394626246,1763795452849,-500.0,0.00016712,2]
[394626247,1763795452859,-500.0,0.00016712,2]
[394626248,1763795452869,-384.6467605,0.00016712,2]
[394626249,1763795453138,-500.0,0.00016712,2]
[394626250,1763795453160,-835.25,0.00016712,2]
[394626251,1763795453170,-530.75167273,0.00016712,2]
[394626252,1763795453180,-783.43,0.00016712,2]
[394626253,1763795453190,-500.0,0.00016712,2]
[394626254,1763795453199,-500.0,0.00016712,2]
[394626255,1763795453209,-500.0,0.00016712,2]
[394626256,1763795453219,-555.01,0.00016712,2]
[394626257,1763795453229,-450.89808715,0.00016712,2]
[394626258,1763795453239,-555.93664606,0.00016712,2]
[394626259,1763795453248,-500.0,0.00016712,2]
[394626260,1763795453257,-500.0,0.00016712,2]
[394626261,1763795453267,-500.0,0.00016712,2]
[394626262,1763795453277,-567.49,0.00016712,2]
[394626263,1763795453286,-257.17081694,0.00016712,2]
[394626264,1763795453296,-430.83175208,0.00016712,2]
[394626265,1763795453305,-500.0,0.00016712,2]
[394626266,1763795453314,-500.0,0.00016712,2]
[394626267,1763795453323,-500.0,0.00016712,2]
[394626268,1763795453333,-500.0,0.00016712,2]
[394626269,1763795453342,-515.68851798,0.00016712,2]
[394626270,1763795453353,-862.12,0.00016712,2]
[394626271,1763795453363,-712.13,0.00016712,2]
[394626272,1763795453372,-882.47,0.00016712,2]
[394626273,1763795453382,-500.0,0.00016712,2]
[394626274,1763795453393,-500.0,0.00016712,2]
[394626275,1763795453402,-500.0,0.00016712,2]
[394626276,1763795453411,-930.74,0.00016712,2]
[394626277,1763795453422,-500.0,0.00016712,2]
[394626278,1763795453432,-293.62136585,0.00016712,2]
[394626279,1763795453442,-500.0,0.00016712,2]
[394626280,1763795453452,-500.0,0.00016712,2]
[394626281,1763795453462,-986.57,0.00016712,2]
[394626282,1763795453471,-500.0,0.00016712,2]
[394626283,1763795453481,-684.09,0.00016712,2]
[394626284,1763795453490,-622.4,0.00016712,2]
[394626285,1763795453500,-500.0,0.00016712,2]
[394626286,1763795453509,-500.0,0.00016712,2]
[394626287,1763795453519,-636.78,0.00016712,2]
[394626288,1763795453529,-903.87,0.00016712,2]
[394626289,1763795453539,-552.67,0.00016712,2]
[394626290,1763795453548,-650.37,0.00016712,2]
[394626291,1763795453558,-500.0,0.00016712,2]
[394626292,1763795453567,-572.56866556,0.00016712,2]
[394626293,1763795453576,-423.78289623,0.00016712,2]
[394626294,1763795453586,-500.0,0.00016712,2]
[394626295,1763795453595,-500.0,0.00016712,2]
[394626296,1763795453604,-949.19,0.00016712,2]
[394626297,1763795453613,-500.0,0.00016712,2]
[394626298,1763795453623,-500.0,0.00016712,2]
[394626299,1763795453632,-500.0,0.00016712,2]
[394626300,1763795453641,-456.8214368,0.00016712,2]
[394626301,1763795453650,-511.73,0.00016712,2]
[394626302,1763795453659,-500.0,0.00016712,2]
[394626303,1763795453669,-431.13446031,0.00016712,2]
[394626304,1763795453678,-596.89,0.00016712,2]
[394626305,1763795453687,-1022.1,0.00016712,2]
[394626306,1763795453696,-500.0,0.00016712,2]
[394626307,1763795453706,-500.0,0.00016712,2]
[394626308,1763795453720,-521.78030273,0.00016712,2]
[394626309,1763795453730,-500.0,0.00016712,2]
[394626310,1763795453739,-545.50887174,0.00016712,2]
[394626311,1763795453749,-840.6,0.00016712,2]
[394626312,1763795453759,-906.66,0.00016712,2]
[394626313,1763795453768,-500.0,0.00016712,2]
[394626314,1763795453778,-500.0,0.00016712,2]
[394626315,1763795453787,-500.0,0.00016712,2]
[394626316,1763795453797,-683.84,0.00016712,2]
[394626317,1763795453806,-500.0,0.00016712,2]
[394626318,1763795453816,-802.44,0.00016712,2]
[394626319,1763795453825,-500.0,0.00016712,2]
[394626320,1763795453834,-500.0,0.00016712,2]
[394626321,1763795453843,-500.0,0.00016712,2]
[394626322,1763795453852,-500.0,0.00016712,2]
[394626323,1763795453861,-500.0,0.00016712,2]
[394626324,1763795453870,-500.0,0.00016712,2]
[394626325,1763795453879,-1663.26,0.00016712,2]
[394626326,1763795453888,-500.0,0.00016712,2]
[394626327,1763795453898,-500.0,0.00016712,2]
[394626328,1763795453908,-590.17,0.00016712,2]
[394626329,1763795453917,-500.0,0.00016712,2]
[394626330,1763795453927,-500.0,0.00016712,2]
[394626331,1763795453936,-500.0,0.00016712,2]
[394626332,1763795453945,-710.85,0.00016712,2]
[394626333,1763795453955,-642.27,0.00016712,2]
[394626334,1763795453964,-878.89,0.00016712,2]
[394626335,1763795453973,-500.0,0.00016712,2]
[394626336,1763795453982,-500.0,0.00016712,2]
[394626337,1763795453992,-500.0,0.00016712,2]
[394626338,1763795454001,-554.72,0.00016712,2]
[394626339,1763795454010,-500.0,0.00016712,2]
[394626340,1763795454020,-513.68407798,0.00016712,2]
[394626341,1763795454029,-500.0,0.00016712,2]
[394626342,1763795454038,-500.0,0.00016712,2]
[394626343,1763795454048,-571.32,0.00016712,2]
[394626344,1763795454057,-664.81,0.00016712,2]
[394626345,1763795454066,-500.0,0.00016712,2]
[394626346,1763795454076,-500.0,0.00016712,2]
[394626347,1763795454085,-500.0,0.00016712,2]
[394626348,1763795454098,-500.0,0.00016712,2]
[394626349,1763795454107,-500.0,0.00016712,2]
[394626350,1763795454117,-571.23,0.00016712,2]
[394626351,1763795454126,-1071.02,0.00016712,2]
[394626352,1763795454136,-907.63,0.00016712,2]
[394626353,1763795454145,-500.0,0.00016712,2]
[394626354,1763795454154,-500.0,0.00016712,2]
[394626355,1763795454163,-246.44169233,0.00016712,2]
[394626356,1763795454174,-500.0,0.00016712,2]
[394626357,1763795454184,-500.0,0.00016712,2]
[394626358,1763795454193,-500.0,0.00016712,2]
[394626359,1763795454202,-1282.27,0.00016712,2]
[394626360,1763795454212,-500.0,0.00016712,2]
[394626361,1763795454221,-500.0,0.00016712,2]
[394626362,1763795454230,-510.31,0.00016712,2]
[394626363,1763795454240,-500.0,0.00016712,2]
[394626364,1763795454249,-500.0,0.00016712,2]
[394626365,1763795454258,-551.38,0.00016712,2]
[394626366,1763795454267,-500.0,0.00016712,2]
[394626367,1763795454276,-500.0,0.00016712,2]
[394626368,1763795454286,-500.0,0.00016712,2]
[394626369,1763795454295,-500.0,0.00016712,2]
[394626370,1763795454304,-634.0802687,0.00016712,2]
[394626371,1763795454314,-500.0,0.00016712,2]
[394626372,1763795454323,-349.23568488,0.00016712,2]
[394626373,1763795454333,-500.0,0.00016712,2]
[394626374,1763795454342,-500.0,0.00016712,2]
[394626375,1763795454352,-4611.01,0.00016712,2]
[394626376,1763795454361,-500.0,0.00016712,2]
[394626377,1763795454371,-559.84,0.00016712,2]
[394626378,1763795454380,-500.0,0.00016712,2]
[394626379,1763795454389,-500.0,0.00016712,2]
[394626380,1763795454398,-731.85,0.00016712,2]
[394626381,1763795454408,-500.0,0.00016712,2]
[394626382,1763795454421,-500.0,0.00016712,2]
[394626383,1763795454431,-921.22,0.00016712,2]
[394626384,1763795454440,-500.0,0.00016712,2]
[394626385,1763795454451,-500.0,0.00016712,2]
[394626386,1763795454461,-538.25,0.00016712,2]
[394626387,1763795454472,-295.61314563,0.00016712,2]
[394626388,1763795454482,-1314.18,0.00016712,2]
[394626389,1763795454491,-564.41,0.00016712,2]
[394626390,1763795454501,-500.0,0.00016712,2]
[394626391,1763795454510,-745.5,0.00016712,2]
[394626392,1763795454520,-1084.77,0.00016712,2]
[394626393,1763795454529,-500.0,0.00016712,2]
[394626394,1763795454538,-500.0,0.00016712,2]
[394626395,1763795454547,-868.15,0.00016712,2]
[394626396,1763795454557,-500.0,0.00016712,2]
[394626397,1763795454566,-500.0,0.00016712,2]
[394626398,1763795454575,-500.0,0.00016712,2]
[394626399,1763795454584,-581.13866083,0.00016712,2]
[394626400,1763795454594,-500.0,0.00016712,2]
[394626401,1763795454604,-500.0,0.00016712,2]
[394626402,1763795454615,-1394.24,0.00016712,2]
[394626403,1763795454625,-833.98,0.00016712,2]
[394626404,1763795454636,-1003.9,0.00016712,2]
[394626405,1763795454648,-968.93,0.00016712,2]
[394626406,1763795454658,-500.0,0.00016712,2]
[394626407,1763795454670,-500.0,0.00016712,2]
[394626408,1763795454679,-500.0,0.00016712,2]
[394626409,1763795454689,-500.0,0.00016712,2]
[394626410,1763795454699,-500.0,0.00016712,2]
[394626411,1763795454710,-235.00211814,0.00016712,2]
[394626412,1763795454719,-395.54475106,0.00016712,2]
[394626413,1763795454729,-1270.78,0.00016712,2]
[394626414,1763795454738,-591.78,0.00016712,2]
[394626415,1763795454748,-500.0,0.00016712,2]
[394626416,1763795454758,-1323.25,0.00016712,2]
[394626417,1763795454769,-500.0,0.00016712,2]
[394626418,1763795454777,-500.0,0.00016712,2]
[394626419,1763795454787,-500.0,0.00016712,2]
[394626420,1763795454796,-500.0,0.00016712,2]
[394626421,1763795454805,-960.48,0.00016712,2]
[394626422,1763795454814,-500.0,0.00016712,2]
[394626423,1763795454826,-1270.58,0.00016712,2]
[394626424,1763795454835,-1756.44,0.00016712,2]
[394626425,1763795454844,-500.0,0.00016712,2]
[394626426,1763795454853,-5897.28,0.00016712,2]
[394626427,1763795454862,-544.56110066,0.00016712,2]
[394626428,1763795454871,-300.0,0.00016712,2]
[394626429,1763795454881,-500.0,0.00016712,2]
[394626430,1763795454890,-673.29,0.00016712,2]
[394626431,1763795454899,-500.0,0.00016712,2]
[394626432,1763795454908,-642.99,0.00016712,2]
[394626433,1763795454917,-500.0,0.00016712,2]
[394626434,1763795454926,-500.0,0.00016712,2]
[394626435,1763795454935,-500.0,0.00016712,2]
[394626436,1763795454944,-793.06,0.00016712,2]
[394626437,1763795454954,-539.56,0.00016712,2]
[394626438,1763795454963,-500.0,0.00016712,2]
[394626439,1763795454972,-500.0,0.00016712,2]
[394626440,1763795454982,-500.0,0.00016712,2]
[394626441,1763795454991,-500.0,0.00016712,2]
[394626442,1763795455000,-500.0,0.00016712,2]
[394626443,1763795455010,-500.0,0.00016712,2]
[394626444,1763795455019,-500.0,0.00016712,2]
[394626445,1763795455027,-1013.52,0.00016712,2]
[394626446,1763795455037,-500.0,0.00016712,2]
[394626447,1763795455046,-500.0,0.00016712,2]
[394626448,1763795455055,-500.0,0.00016712,2]
[394626449,1763795455064,-732.25,0.00016712,2]
[394626450,1763795455074,-500.0,0.00016712,2]
[394626451,1763795455083,-500.0,0.00016712,2]
[394626452,1763795455099,-500.0,0.00016712,2]
[394626453,1763795455108,-3543.04,0.00016712,2]
[394626454,1763795455117,-500.0,0.00016712,2]
[394626455,1763795455126,-500.0,0.00016712,2]
[394626456,1763795455137,-500.0,0.00016712,2]
[394626457,1763795455147,-1235.15,0.00016712,2]
[394626458,1763795455156,-1277.22,0.00016712,2]
[394626459,1763795455167,-500.0,0.00016712,2]
[394626460,1763795455175,-500.0,0.00016712,2]
[394626461,1763795455184,-500.0,0.00016712,2]
[394626462,1763795455194,-500.0,0.00016712,2]
[394626463,1763795455205,-500.0,0.00016712,2]
[394626464,1763795455214,-500.0,0.00016712,2]
[394626465,1763795455223,-500.0,0.00016712,2]
[394626466,1763795455232,-500.0,0.00016712,2]
[394626467,1763795455241,-500.0,0.00016712,2]
[394626468,1763795455250,-500.0,0.00016712,2]
[394626469,1763795455259,-1044.2,0.00016712,2]
[394626470,1763795455269,-740.95,0.00016712,2]
[394626471,1763795455279,-500.0,0.00016712,2]
[394626472,1763795455288,-500.0,0.00016712,2]
[394626473,1763795455298,-804.88,0.00016712,2]
[394626474,1763795455307,-500.0,0.00016712,2]
[394626475,1763795455317,-698.82,0.00016712,2]
[394626476,1763795455327,-726.81,0.00016712,2]
[394626477,1763795455337,-500.0,0.00016712,2]
[394626478,1763795455347,-500.0,0.00016712,2]
[394626479,1763795455356,-500.0,0.00016712,2]
[394626480,1763795455365,-597.4,0.00016712,2]
[394626481,1763795455374,-500.0,0.00016712,2]
[394626482,1763795455385,-500.0,0.00016712,2]
[394626483,1763795455395,-500.0,0.00016712,2]
[394626484,1763795455404,-500.0,0.00016712,2]
[394626485,1763795455417,-500.0,0.00016712,2]
[394626486,1763795455426,-691.58,0.00016712,2]
[394626487,1763795455436,-564.65,0.00016712,2]
[394626488,1763795455445,-500.0,0.00016712,2]
[394626489,1763795455455,-500.0,0.00016712,2]
[394626490,1763795455464,-500.0,0.00016712,2]
[394626491,1763795455474,-500.0,0.00016712,2]
[394626492,1763795455483,-333.37502388,0.00016712,2]
[394626493,1763795455493,-500.0,0.00016712,2]
[394626494,1763795455502,-500.0,0.00016712,2]
[394626495,1763795455514,-500.0,0.00016712,2]
[394626496,1763795455523,-655.79,0.00016712,2]
[394626497,1763795455533,-500.0,0.00016712,2]
[394626498,1763795455543,-500.0,0.00016712,2]
[394626499,1763795455553,-500.0,0.00016712,2]
[394626500,1763795455562,-782.5,0.00016712,2]
[394626501,1763795455571,-500.0,0.00016712,2]
[394626502,1763795455580,-647.09,0.00016712,2]
[394626503,1763795455589,-500.0,0.00016712,2]
[394626504,1763795455598,-500.0,0.00016712,2]
[394626505,1763795455607,-904.27,0.00016712,2]
[394626506,1763795455616,-176.94,0.00016712,2]
[394626507,1763795455626,-500.0,0.00016712,2]
[394626508,1763795455635,-1622.6,0.00016712,2]
[394626509,1763795455644,-500.0,0.00016712,2]
[394626510,1763795455653,-500.0,0.00016712,2]
[394626511,1763795455662,-500.0,0.00016712,2]
[394626512,1763795455671,-733.12,0.00016712,2]
[394626513,1763795455680,-787.46,0.00016712,2]
[394626514,1763795455689,-500.0,0.00016712,2]
[394626515,1763795455698,-500.0,0.00016712,2]
[394626516,1763795455708,-3465.48,0.00016712,2]
[394626517,1763795455717,-427.76857683,0.00016712,2]
[394626518,1763795455726,-500.0,0.00016712,2]
[394626519,1763795455735,-500.0,0.00016712,2]
[394626520,1763795455744,-500.0,0.00016712,2]
[394626521,1763795455756,-500.0,0.00016712,2]
[394626522,1763795455770,-500.0,0.00016712,2]
[394626523,1763795455783,-1361.43,0.00016712,2]
[394626524,1763795455796,-332.79559472,0.00016712,2]
[394626525,1763795455806,-500.0,0.00016712,2]
[394626526,1763795455819,-500.0,0.00016712,2]
[394626527,1763795455831,-517.54,0.00016712,2]
[394626528,1763795455844,-500.0,0.00016712,2]
[394626529,1763795455857,-500.0,0.00016712,2]
[394626530,1763795455871,-500.0,0.00016712,2]
[394626531,1763795455882,-500.0,0.00016712,2]
[394626532,1763795455895,-2776.22,0.00016712,2]
[394626533,1763795455906,-500.0,0.00016712,2]
[394626534,1763795455917,-953.39,0.00016712,2]
[394626535,1763795455930,-528.91972901,0.00016712,2]
[394626536,1763795455942,-500.0,0.00016712,2]
[394626537,1763795455955,-500.0,0.00016712,2]
[394626538,1763795455969,-679.39,0.00016712,2]
[394626539,1763795455982,-500.0,0.00016712,2]
[394626540,1763795455996,-500.0,0.00016712,2]
[394626541,1763795456010,-1700.59,0.00016712,2]
[394626542,1763795456026,-500.0,0.00016712,2]
[394626543,1763795456039,-500.0,0.00016712,2]
[394626544,1763795456052,-500.0,0.00016712,2]
[394626545,1763795456064,-1365.73,0.00016712,2]
[394626546,1763795456076,-1141.67,0.00016712,2]
[394626547,1763795456089,-1067.76,0.00016712,2]
[394626548,1763795456106,-500.0,0.00016712,2]
[394626549,1763795456119,-500.0,0.00016712,2]
[394626550,1763795456130,-211.71043385,0.00016712,2]
[394626551,1763795456143,-500.0,0.00016712,2]
[394626552,1763795456157,-500.0,0.00016712,2]
[394626553,1763795456168,-505.09,0.00016712,2]
[394626554,1763795456181,-500.0,0.00016712,2]
[394626555,1763795456194,-597.03,0.00016712,2]
[394626556,1763795456210,-500.0,0.00016712,2]
[394626557,1763795456221,-500.0,0.00016712,2]
[394626558,1763795456231,-500.0,0.00016712,2]
[394626559,1763795456242,-500.0,0.00016712,2]
[394626560,1763795456253,-500.0,0.00016712,2]
[394626561,1763795456266,-500.0,0.00016712,2]
[394626562,1763795456280,-518.12392538,0.00016712,2]
[394626563,1763795456292,-500.0,0.00016712,2]
[394626564,1763795456302,-1561.68,0.00016712,2]
[394626565,1763795456314,-2836.92,0.00016712,2]
[394626566,1763795456331,-500.0,0.00016712,2]
[394626567,1763795456342,-549.36,0.00016712,2]
[394626568,1763795456354,-500.0,0.00016712,2]
[394626569,1763795456365,-500.0,0.00016712,2]
[394626570,1763795456376,-166.84566936,0.00016712,2]
[394626571,1763795456387,-517.60637935,0.00016712,2]
[394626572,1763795456399,-500.0,0.00016712,2]
[394626573,1763795456410,-500.0,0.00016712,2]
[394626574,1763795456422,-204.04269117,0.00016712,2]
[394626575,1763795456433,-500.0,0.00016712,2]
[394626576,1763795456445,-500.0,0.00016712,2]
[394626577,1763795456456,-500.0,0.00016712,2]
[394626578,1763795456467,-500.0,0.00016712,2]
[394626579,1763795456478,-500.0,0.00016712,2]
[394626580,1763795456490,-1018.18,0.00016712,2]
[394626581,1763795456501,-759.31,0.00016712,2]
[394626582,1763795456513,-1213.88,0.00016712,2]
[394626583,1763795456525,-2177.24,0.00016712,2]
[394626584,1763795456543,-910.36,0.00016712,2]
[394626585,1763795456555,-672.23,0.00016712,2]
[394626586,1763795456567,-500.0,0.00016712,2]
[394626587,1763795456579,-500.0,0.00016712,2]
[394626588,1763795456591,-500.0,0.00016712,2]
[394626589,1763795456602,-500.0,0.00016712,2]
[394626590,1763795456615,-519.08277718,0.00016712,2]
[394626591,1763795456628,-500.0,0.00016712,2]
[394626592,1763795456640,-1090.15,0.00016712,2]
[394626593,1763795456651,-1094.76,0.00016712,2]
[394626594,1763795456662,-872.6,0.00016712,2]
[394626595,1763795456673,-500.0,0.00016712,2]
[394626596,1763795456684,-500.0,0.00016712,2]
[394626597,1763795456695,-500.0,0.00016712,2]
[394626598,1763795456707,-500.0,0.00016712,2]
[394626599,1763795456718,-500.0,0.00016712,2]
[394626600,1763795456729,-500.0,0.00016712,2]
[394626601,1763795456740,-500.0,0.00016712,2]
[394626602,1763795456751,-500.0,0.00016712,2]
[394626603,1763795456762,-500.0,0.00016712,2]
[394626604,1763795456773,-251.36235403,0.00016712,2]
[394626605,1763795456784,-500.0,0.00016712,2]
[394626606,1763795456795,-624.91980357,0.00016712,2]
[394626607,1763795456806,-8935.96,0.00016712,2]
[394626608,1763795456817,-1399.76,0.00016712,2]
[394626609,1763795456828,-2311.26,0.00016712,2]
[394626610,1763795456839,-451.4494275,0.00016712,2]
[394626611,1763795456851,-234.75926816,0.00016712,2]
[394626612,1763795456862,-626.87,0.00016712,2]
[394626613,1763795456875,-500.0,0.00016712,2]
[394626614,1763795456886,-773.67,0.00016712,2]
[394626615,1763795456897,-902.42,0.00016712,2]
[394626616,1763795456908,-500.0,0.00016712,2]
[394626617,1763795456919,-500.0,0.00016712,2]
[394626618,1763795456930,-500.0,0.00016712,2]
[394626619,1763795456941,-451.0277399,0.00016712,2]
[394626620,1763795456952,-500.0,0.00016712,2]
[394626621,1763795456963,-500.0,0.00016712,2]
[394626622,1763795456979,-531.43,0.00016712,2]
[394626623,1763795456991,-500.0,0.00016712,2]
[394626624,1763795457002,-2809.48,0.00016712,2]
[394626625,1763795457013,-500.0,0.00016712,2]
[394626626,1763795457024,-873.93,0.00016712,2]
[394626627,1763795457035,-819.4,0.00016712,2]
[394626628,1763795457046,-787.03,0.00016712,2]
[394626629,1763795457057,-166.67,0.00016743,2]
[394626630,1763795457068,-150.0,0.00016757,2]
[394626631,1763795457080,-1488.45796968,0.00016758,2]
[394626632,1763795457096,-500.0,0.00016766,2]
[394626633,1763795457109,-351.02217685,0.00016766,2]
[394626634,1763795457121,-540.50856959,0.00016767,2]
[394626635,1763795457135,-500.0,0.00016767,2]
[394626636,1763795457148,-585.6555336,0.00016767,2]
[394626637,1763795457160,-577.16847586,0.00016767,2]
[394626638,1763795457171,-500.0,0.00016767,2]
[394626639,1763795457184,-500.0,0.00016767,2]
[394626640,1763795457195,-500.0,0.00016767,2]
[394626641,1763795457206,-500.0,0.00016767,2]
[394626642,1763795457217,-500.0,0.00016767,2]
[394626643,1763795457230,-500.0,0.00016767,2]
[394626644,1763795457241,-500.0,0.00016767,2]
[394626645,1763795457252,-500.0,0.00016767,2]
[394626646,1763795457262,-1209.88,0.00016767,2]
[394626647,1763795457274,-5154.75,0.00016767,2]